Cogmind - Beta 9.3 @@@ ROGUE MODE // 2020.01.06 @ 23:28:34 Player: Klin Result: Destroyed by G-34 Mercenary with Small Laser Performance ------------- Evolutions (1) 500 Regions Visited (3) 600 Robots Destroyed (44) 220 Value Destroyed (823) 823 Prototype IDs (4) 80 Alien Tech Used (0) 0 Bonus (0) 0 TOTAL SCORE: 2223 Bonus ------- None Cogmind --------- Core Integrity 0/400 Matter 112/300 Energy 39/100 System Corruption 6% Temperature Cool (82) Movement Core (300) Ox5 Location -9/Materials Parts ------- > --- POWER (1) -------- (None) > --- PROPULSION (4) --- (None) > --- UTILITY (2) ------ Large Storage Unit Transport Network Coupler > --- WEAPON (2) ------- Small Laser Light Assault Rifle > --- INVENTORY (10) --- Light Ion Engine Light Ion Engine Large Storage Unit Signal Interpreter Improved Terrain Scanner Improved Targeting Computer Peak State ------------ > --- POWER ------------ Ion Engine > --- PROPULSION ------- Improved Flight Unit > --- UTILITY ---------- Large Storage Unit Transport Network Coupler > --- WEAPON ----------- Advanced Beam Cannon Grenade Launcher > --- INVENTORY -------- Light Ion Engine Light Ion Engine Large Storage Unit Signal Interpreter Improved Terrain Scanner Improved Targeting Computer Small Laser Light Assault Rifle [Rating: 11] Favorites ----------- Power Ion Engine Engine Ion Engine Propulsion Aluminum Leg Leg Aluminum Leg Flight Unit Improved Flight Unit Utility Large Storage Unit Device Sensor Array Storage Large Storage Unit Processor Transport Network Coupler Weapon Light Assault Rifle Energy Gun Beam Rifle Energy Cannon Advanced Beam Cannon Ballistic Gun Light Assault Rifle Launcher Grenade Launcher Build | -11 -10 -10 -9 ------- Run | Scr Mat Min Mat Slots Evolved 2 | . . . 2 Power . | . . . . Propulsion 2 | . . . 2 Utility . | . . . . Weapon . | . . . . Parts Attached 37 | 7 12 7 11 Power 7 | 2 1 2 2 Engine 7 | 2 1 2 2 Core . | . . . . Reactor . | . . . . Propulsion 7 | 2 3 1 1 Treads . | . . . . Leg 6 | 2 3 1 . Wheel . | . . . . Hover . | . . . . Flight 1 | . . . 1 Utility 8 | 1 5 . 2 Device 2 | . 2 . . Storage 5 | 1 3 . 1 Processor 1 | . . . 1 Hackware . | . . . . Protection . | . . . . Artifact . | . . . . Weapon 15 | 2 3 4 6 Energy Gun 4 | . 3 . 1 Energy Cannon 1 | . . . 1 Ballistic Gun 8 | 2 . 4 2 Ballistic Cannon . | . . . . Launcher 2 | . . . 2 Special Weapon . | . . . . Impact Weapon . | . . . . Slashing Weapon . | . . . . Piercing Weapon . | . . . . Special Melee Weapon . | . . . . Unidentified Prototypes . | . . . . Parts Lost 22 | . 4 7 11 Power 4 | . 1 1 2 Propulsion 4 | . . 2 2 Utility 2 | . 1 . 1 Weapon 12 | . 2 4 6 Highest Loss Streak 5 | . 4 5 4 Average Slot Usage (%) 75 | . 94 73 58 Engine 9 | . 13 6 9 Leg 16 | . 28 18 3 Flight 1 | . . . 5 Device 8 | . 8 14 4 Storage 13 | . 15 14 11 Processor 1 | . . . 5 Energy Gun 6 | . 17 2 . Energy Cannon 1 | . . . 5 Ballistic Gun 11 | . 10 17 6 Launcher 2 | . . . 7 Naked Turns . | . . . . Heaviest Build 30 | 13 28 28 30 Greatest Support 20 | 20 20 20 10 Greatest Overweight (x) 9 | 3 1 5 9 Average Overweight (x) 1 | . . 1 3 Largest Inventory Capacity 10 | 6 10 10 10 Average Capacity 9 | 5 7 10 10 Most Carried 8 | 1 8 5 8 Average Carried 5 | . 5 4 7 Final Capacity 10 | 6 10 10 10 Final Carried 6 | 1 5 5 6 Class Distribution -------------------- 62% | Mutant 37% | Scavenger-Mutant Dominant Class ---------------- Mutant | -10/Materials Mutant | -10/Mines Mutant | -9/Materials Resources | -11 -10 -10 -9 ----------- Run | Scr Mat Min Mat Matter Collected 888 | 241 375 117 155 Remotely 20 | . 20 . . Salvage Created 1117 | . 431 189 497 Parts 88 | . 28 14 46 Haulers Intercepted 2 | . . . 2 Recyclers Shooed 3 | . . . 3 Parts Field Recycled . | . . . . Retrieved Matter . | . . . . Parts Self-Destructed . | . . . . Prevented . | . . . . Kills | -11 -10 -10 -9 ------- Run | Scr Mat Min Mat Combat Hostiles Destroyed 27 | . 9 8 10 Guns 20 | . 9 8 3 Cannons 3 | . . . 3 AOE 4 | . . . 4 Classes Destroyed 8 | . 5 . 3 Worker 5 | . . . 5 Builder 4 | . 1 . 3 Hauler 2 | . . . 2 Recycler 2 | . 2 . . Watcher 4 | . 1 . 3 Swarmer 12 | . 3 6 3 Grunt 13 | . 6 2 5 Sentry 2 | . . . 2 Best Kill Streak 11 | . 4 3 11 Combat Bots Only 4 | . 2 3 4 Max Kills in Single Turn 3 | . 2 1 3 Gunslinging 1 | . 1 . . Exploded 1 | . . . 1 Melee . | . . . . Uniques/NPCs Destroyed . | . . . . Combat | -11 -10 -10 -9 -------- Run | Scr Mat Min Mat Damage Taken 2401 | . 638 630 1133 Core 583 | . 87 93 403 Absorbed by Shields . | . . . . Core Remaining (%) 64 | 100 . 28 . Volleys Fired 172 | . 50 51 71 Largest 2 | . 2 2 2 Hottest 112 | . 112 112 98 Shots Fired 261 | . 95 77 89 Gun 217 | . 95 77 45 Cannon 25 | . . . 25 Launcher 19 | . . . 19 Special . | . . . . Kinetic 173 | . 73 59 41 Thermal 69 | . 22 18 29 Explosive 19 | . . . 19 Electromagnetic . | . . . . Robot Hit Streak 13 | . 6 13 9 Robot Miss Streak 7 | . 7 5 5 Penetration Max . | . . . . Secondary Targets 2 | . 2 . . Max Gunslinging Chain 1 | . 1 . . Shots Hit Robots 158 | . 47 53 58 Core Hits 72 | . 21 15 36 Critical Hits 4 | . . . 4 Critical Kills 1 | . . . 1 Critical Parts Destroyed 3 | . . . 3 Melee Attacks . | . . . . Impact . | . . . . Slashing . | . . . . Piercing . | . . . . Sneak Attacks . | . . . . Combat Hostiles . | . . . . Follow-up Attacks . | . . . . Damage Inflicted 2766 | . 599 486 1681 Guns 1508 | . 592 486 430 Cannons 288 | . . . 288 Explosions 963 | . . . 963 Melee . | . . . . Ramming 7 | . 7 . . Kinetic 1176 | . 445 345 386 Thermal 620 | . 147 141 332 Explosive 963 | . . . 963 Electromagnetic . | . . . . Impact . | . . . . Slashing . | . . . . Piercing . | . . . . Highest Corruption 6 | . . . 6 Average Corruption 1 | . . . 1 Corruption Purged . | . . . . Effects 5 | . . . 5 Message Errors 3 | . . . 3 Matter Fused 1 | . . . 1 Data Loss (minor) 1 | . . . 1 Overload Shots . | . . . . Overflow Damage 59 | . . . 59 Projectiles . | . . . . Explosions 59 | . . . 59 Melee . | . . . . Knockbacks . | . . . . Impact . | . . . . Kinetic . | . . . . Secondary . | . . . . Self-Inflicted Damage 94 | . . . 94 Shots 5 | . . . 5 Rammed . | . . . . Targets Rammed 1 | . 1 . . Kicked 1 | . 1 . . Crushed . | . . . . Highest Temperature 421 | . 342 421 260 Average Temperature 127 | . 112 194 81 Received Heat Transfer 780 | . 300 129 351 Effects 1 | . . 1 . Short Circuit 1 | . . 1 . Siege Activations . | . . . . Robots Corrupted . | . . . . Combat Hostiles . | . . . . Parts Fried . | . . . . Impact Corruptions . | . . . . Robots Melted . | . . . . Combat Hostiles . | . . . . Parts Melted 2 | . . 2 . Heat Transferred 1358 | . 370 370 618 Parts Sabotaged . | . . . . Parts Stolen . | . . . . Parts Stripped . | . . . . Power Chain Reactions . | . . . . Missiles Intercepted . | . . . . Alert | -11 -10 -10 -9 ------- Run | Scr Mat Min Mat Peak Influence 222 | . 222 94 168 Average Influence 63 | . 93 37 65 Maximum Alert Level 1 | . 1 . . Low Security (%) 97 | 100 90 100 100 Level 1 2 | . 9 . . Level 2 . | . . . . Level 3 . | . . . . Level 4 . | . . . . Level 5 . | . . . . High Security . | . . . . Max Security . | . . . . Squads Dispatched 5 | . 3 . 2 Investigation 3 | . 2 . 1 Extermination . | . . . . Reinforcement 2 | . 1 . 1 Assault . | . . . . Garrison . | . . . . Intercept . | . . . . Construction Impeded 1 | . . . 1 Haulers Reinforced . | . . . . Stealth | -11 -10 -10 -9 --------- Run | Scr Mat Min Mat Distress Signals 7 | . 4 . 3 Communications Jammed . | . . . . Distress Signals . | . . . . Times Spotted 48 | . 17 11 20 Peak Tracking Total 5 | . 4 3 5 Tactical Retreats 2 | . . 2 . Traps | -11 -10 -10 -9 ------- Run | Scr Mat Min Mat Traps Triggered . | . . . . Indirectly . | . . . . Trap Hack Attempts . | . . . . Triggered . | . . . . Disarmed . | . . . . Reprogrammed 1 | . 1 . . Reused . | . . . . Traps Extracted . | . . . . Installed . | . . . . Triggered . | . . . . Machines | -11 -10 -10 -9 ---------- Run | Scr Mat Min Mat Machines Disabled 4 | . . . 4 Max in Single Turn 1 | . . . 1 Machines Sabotaged . | . . . . Garrisons Compromised . | . . . . Overloaded Fab Kills . | . . . . Fab Network Shutdowns . | . . . . Hacking | -11 -10 -10 -9 --------- Run | Scr Mat Min Mat Machines Accessed 8 | . 7 . 1 Terminals 7 | . 6 . 1 Fabricators . | . . . . Repair Stations 1 | . 1 . . Recycling Units . | . . . . Scanalyzers . | . . . . Garrison Access . | . . . . Total Hacks 25 | . 22 . 3 Successful 18 | . 16 . 2 Failed 7 | . 6 . 1 Catastrophic 1 | . 1 . . Database Lockouts . | . . . . Manual . | . . . . Terminals 23 | . 20 . 3 Fabricators . | . . . . Repair Stations 2 | . 2 . . Recycling Units . | . . . . Scanalyzers . | . . . . Garrison Access . | . . . . Terminal Hacks 16 | . 14 . 2 Record 11 | . 9 . 2 Prototype ID Bank 2 | . 2 . . Emergency Access Points 1 | . 1 . . Reprogram Traps 1 | . 1 . . Zone Layout 1 | . 1 . . Fabricator Hacks . | . . . . Repair Station Hacks 2 | . 2 . . Scan Component 1 | . 1 . . Repair 1 | . 1 . . Recycling Unit Hacks . | . . . . Scanalyzer . | . . . . Garrison Access Hacks . | . . . . Unauthorized Hacks . | . . . . Terminals . | . . . . Fabricators . | . . . . Repair Stations . | . . . . Recycling Units . | . . . . Scanalyzers . | . . . . Garrison Access . | . . . . Data Cores Recovered . | . . . . Used . | . . . . Hacking Detections 6 | . 5 . 1 Full Trace Events 5 | . 4 . 1 Feedback Events 1 | . . . 1 Corruption 1 | . . . 1 Feedback Blocked . | . . . . Robot Schematics Acquired . | . . . . Robots Built . | . . . . Matter . | . . . . Time . | . . . . Total Robot Build Rating . | . . . . Part Schematics Acquired . | . . . . Parts Built . | . . . . Matter . | . . . . Time . | . . . . Total Part Build Rating . | . . . . Parts Repaired 1 | . 1 . . Time 16 | . 16 . . Parts Recycled . | . . . . Recycled Matter . | . . . . Retrieved Matter . | . . . . Retrieved Components . | . . . . Parts Scanalyzed . | . . . . Part Schematics Acquired . | . . . . Parts Damaged . | . . . . Bothacking | -11 -10 -10 -9 ------------ Run | Scr Mat Min Mat Used RIF Installer . | . . . . Robots Hacked . | . . . . Non-combat . | . . . . Combat . | . . . . Robot Hacks Applied . | . . . . Relay Couplers Released . | . . . . Robots Rewired . | . . . . Allies Hacked . | . . . . Hacks Repelled . | . . . . Allies | -11 -10 -10 -9 -------- Run | Scr Mat Min Mat Total Allies . | . . . . Largest Group . | . . . . Highest-Rated Group . | . . . . Highest-Rated Ally . | . . . . Total Orders . | . . . . Ally Attacks . | . . . . Total Damage . | . . . . Kills . | . . . . Allies Corrupted . | . . . . Allies Melted . | . . . . Intel | -11 -10 -10 -9 ------- Run | Scr Mat Min Mat Robot Analysis Total . | . . . . Derelict Logs Recovered 3 | . . 3 . Drone Launches . | . . . . Drone Recoveries . | . . . . Exploration | -11 -10 -10 -9 ------------- Run | Scr Mat Min Mat Turns Passed 2325 | 66 737 789 733 Spaces Moved 1095 | 46 409 432 208 Core 38 | 13 . 1 24 Treads . | . . . . Legs 972 | 33 409 431 99 Wheels . | . . . . Hover . | . . . . Flight 85 | . . . 85 Fastest Speed 50 | 50 120 150 180 Average Speed 164 | 118 131 151 262 Slowest Speed 500 | 200 150 300 500 Overloaded Moves . | . . . . Propulsion Burnouts . | . . . . Robots Hopped . | . . . . Cave-ins Triggered . | . . . . Exploration Rate (%) 38 | 3 64 64 22 Regions Visited 3 Branch Regions 1 Pre-discovered Areas 1 | . . 1 . Known Exits Taken . | . . . . Unknown Exits Taken 3 | 1 1 1 . Scrap Searched . | . . . . Spaces Dug . | . . . . Terrain Destroyed 111 | . . . 111 Melee . | . . . . Projectile 1 | . . . 1 AOE 110 | . . . 110 Actions | -11 -10 -10 -9 --------- Run | Scr Mat Min Mat Total 1369 | 54 512 498 305 Wait 43 | . 24 7 12 Move 1092 | 45 408 431 208 Hop . | . . . . Pick Up 15 | 1 9 2 3 Fast Attach 19 | 7 4 3 5 Attach 9 | . 2 3 4 Detach . | . . . . Swap 9 | . 6 1 2 Drop 9 | 1 8 . . Fire 172 | . 50 51 71 Melee . | . . . . Ram . | . . . . Kick 1 | . 1 . . Crush . | . . . . Escape Stasis . | . . . . Rewire . | . . . . Trap . | . . . . Miscellaneous . | . . . . Route ------- -11/Scrapyard -10/Materials (discovered 3 exits: *Mat / [*Min x2]) -10/Mines -9/Materials (discovered 1 exit: *Min) History --------- Turn | Location | Event 31 | -11/Scrapyard | Discovered new exit (range 16) 67 | -11/Scrapyard | Entered Materials 306 | -10/Materials | Build established: Mutant 313 | -10/Materials | Discovered new exit (range 16) 372 | -10/Materials | Lost 4 parts (1p1u2w) 560 | -10/Materials | Discovered new exit (range 13) 616 | -10/Materials | Repaired Beam Rifle 789 | -10/Materials | Build established: Scavenger-Mutant 793 | -10/Materials | Discovered new exit (range 6) 804 | -10/Materials | Entered Mines 881 | -10/Mines | Core integrity fell below 50% 917 | -10/Mines | Discovered new exit (range 14) 994 | -10/Mines | Learned Materials terminal intel 1004 | -10/Mines | Learned Materials terminal intel 1035 | -10/Mines | Learned location of Storage (-9) 1141 | -10/Mines | Lost 5 parts (1p2n2w) 1404 | -10/Mines | Build established: Mutant 1593 | -10/Mines | Entered Materials 1593 | -9/Materials | Evolved 2 slots: Propulsion x2 1594 | -9/Materials | Identified exit to Mines 1595 | -9/Materials | Loaded intel: 12 terminal locations 1948 | -9/Materials | Lost 3 parts (1p1u1w) 2281 | -9/Materials | Core integrity fell below 50% 2315 | -9/Materials | Core integrity fell below 20% 2326 | -9/Materials | Destroyed by G-34 Mercenary with Small Laser Last Messages --------------- G-34 Mercenary suffers critical hit. Destroyed Aluminum Leg. K-01 Serf collects debris. C-30 ARC bursts open, deploying its payload. B-36 Bruiser unfolds itself. K-01 Serf collects debris. Adv. Beam Cannon destroyed. Imp. Flight Unit destroyed. System corrupted by crushing effect (+5). K-01 Serf collects debris. Knocked back. System corrupted: Matter fused (-7). G-34 Mercenary suffers critical hit. G-34 Mercenary destroyed. K-01 Serf collects debris. The unstable cave ceiling collapses. K-01 Serf collects debris. R-06 Scavenger collects Flight Unit. R-06 Scavenger collects Wheel. K-01 Serf collects debris. Map ----- +----------------------------------------------------+ | ?????????# #???????????????????????????? | | ?????????# ### #???????????????????????????? | | ?????????# ####+####?????????????????????????? | | ?????????# ##! #???##????????????????????? | | ?????????######## #?? ####?????????????????? | | ????????????????#""" /?? ??????????????????? | | ????????????????#""" [ #? #???????????????????? | | ????????????????#""" #? #???????????????????? | | ????????????????# ## #???????????????????? | | ???????????????######+## #???????????????????? | | ???????????????# # ??????????????????? | | ???????????????# + ??????????????????? | | ?????????!?????# """ #???????????????????? | | ??????? "!"!???# ||| """ #???????????????????? | | ??????# ## ||| """ #???????????????????? | | ?????? ||| #+#?????????????????? | | ?????? > #?????????????????? | | ?????? ????????????? | | ??????# ####### ##############?????????????? | | ???????#######?????# # #????????????????? | | ??????????????????## # #????????????????? | | ??????????????????# # #????????????????? | | ??????????????????# # # % #????????????????? | | ??????????????????# # # ######??? ###?????????? | | ??????????????????### ## =%*!## #?????????? | | ????????????????##### ##r@%=!= #?????????? | | ????????????????+ b !=| ! #?????????? | | ????????????????########g %[! %[ #?????????? | | ??????????????????? ]%### #?????????? | | ??????????????????? ! k]##???? ##?????????? | | ?????????????????# ### #???????? #??????????? | | ?????????????????# #??r##????????????????????? | | ?????????????????####+##?? ????????????????????? | | ???????????????????? ???? ????????????????????? | | ??????????????????? ????? ???????????????????? | | ??????????????a??? ??????# ???????????????????? | | ?????????????????? ??????### ??????????????????? | | ????????????????? ??????????##???????????????T??? | | ???????????????? ???????????????????????????????? | | ?????????????????????????????????????????????????? | | ?????????????????????????????????????????????????? | | ?????????????????????????????????????????????????? | | ?????????????????????????????????????????????????? | | ?????????????????????????????????????????????????? | | ?????????????????????????????????????????????????? | | ??????????????a??????????????????????????????????? | | ?????????????????????????????????????????????????? | | ?????????????????????????????????????????????????? | | ?????????????????????????????????????????????????? | | ?????????????????????????????????????????????????? | +----------------------------------------------------+ Best States ------------- Heat Dissipation 28 Energy Generation 12 Energy Capacity 265 Matter Stores 300 Matter Capacity 300 Sight Range 16 Robot Scan Range 10 Terrain Scan Density 10 Evasion (%) 40 Item Schematics ----------------- None Robot Schematics ------------------ None Fabricated ------------ Nothing Alien Tech Used ----------------- None Achievements -------------- None Challenges ------------ None Game ------ Seed AntimissileCoilSheargun Manual? 0 Play Time 00:20:04 Cumulative 6.0 hours Start 2020.01.06 @ 23:12:58 End 2020.01.06 @ 23:28:34 Sessions 1 Manual Loads 0 Difficulty Rogue Special Mode None Game No. 20 Rogue 20 Adventurer 0 Explorer 0 Win Type - Total 0 Types 0/0/0/0/0/0/0 Lore% 3 Gallery% 10 Achievement% 8 Wizard Run 0 Options --------- ASCII 0 Keyboard 0 Movement Numpad Keybinds 0 Fullscreen 1 Font 18/SmallcapsGlow Map View 76x50 Tactical HUD 0 Map Filters NONE Filters NONE Steam 1 RUN: c56fe93a-7e64-4869-8579-101f724fd7c3